[Event "5th EKA IIFL Investment 2019"]
[Site "Mumbai"]
[Date "2020.01.04"]
[Round "6.23"]
[White "Shyaamnikhil P"]
[Black "Pranav, Anand"]
[Result "1-0"]
[ECO "A49"]
[WhiteElo "2455"]
[BlackElo "2309"]
[Annotator "ChessBase"]
[PlyCount "59"]
[EventDate "2019.12.30"]
[EventType "swiss"]
[EventCountry "IND"]
[SourceTitle "playchess.com"]
[Source "ChessBase"]
[SourceQuality "1"]
[TimeControl "40/5400+30:1800+30"]

1. Nf3 {[%emt 0:00:55]} Nf6 {[%emt 0:00:00]} 2. d4 {[%emt 0:00:54]} g6 {[%emt 0:00:13]} 3. g3 {[%emt 0:00:48]} Bg7 {[%emt 0:00:08]} 4. Bg2 {[%emt 0:00:04]} O-O {[%emt 0:00:11]} 5. O-O {[%emt 0:00:05]} d6 {[%emt 0:00:07]} 6. Re1 {[%emt 0:00:32]} Nc6 {[%emt 0:09:07]} 7. d5 {[%emt 0:02:32]} Nb8 {[%emt 0:01:08]} 8. e4 {[%emt 0:05:45]} c6 {[%emt 0:03:51]} 9. c4 {[%emt 0:08:01]} cxd5 {[%emt 0:07:36]} 10. cxd5 {[%emt 0:03:15]} Na6 {[%emt 0:05:20]} 11. Nc3 {[%emt 0:01:09]} Bg4 {[%emt 0:18:54]} 12. h3 {[%emt 0:06:29]} Bxf3 {[%emt 0:01:32]} 13. Qxf3 {[%emt 0:00:44]} Nd7 {[%emt 0:08:14]} 14. Qe2 {[%emt 0:09:52]} Nac5 {[%emt 0:06:19]} 15. Be3 {[%emt 0:04:47]} Qa5 {[%emt 0:04:48]} 16. Rec1 {[%emt 0:04:00]} Rfc8 {[%emt 0:05:26]} 17. Rab1 {[%emt 0:04:20]} Na4 {[%emt 0:11:38]} 18. Nxa4 {[%emt 0:06:46]} Qxa4 {[%emt 0:00:08]} 19. b3 {[%emt 0:00:07]} Qb4 {[%emt 0:03:02]} 20. h4 {[%emt 0:07:14]} Nb6 {[%emt 0:06:09]} 21. h5 {[%emt 0:02:54]} Rxc1+ {[%emt 0:02:39]} 22. Rxc1 {[%emt 0:00:59]} Rc8 {[%emt 0:01:11]} 23. Rxc8+ {[%emt 0:02:06]} Nxc8 {[%emt 0:00:04]} 24. h6 {[%emt 0:00:32]} Bf8 {[%emt 0:03:21]} 25. Qc2 {[%emt 0:02:55]} Nb6 {[%emt 0:00:05]} 26. Bh3 {[%emt 0:00:21]} Qa3 {[%emt 0:01:08]} 27. Qd2 {[%emt 0:02:59]} Qa6 {[%emt 0:00:37]} 28. Bd4 {[%emt 0:11:17]} Qa3 {[%emt 0:00:30]} 29. Ba1 {[%emt 0:00:23]} Qc5 {[%emt 0:00:30]} 30. Qb2 {[%emt 0:00:38]} 1-0

[Event "5th EKA IIFL Investment 2019"]
[Site "Mumbai"]
[Date "2020.01.04"]
[Round "6.26"]
[White "Krishnater Kushager"]
[Black "Khusenkhojaev, Muhammad"]
[Result "1-0"]
[ECO "C67"]
[WhiteElo "2308"]
[BlackElo "2427"]
[Annotator "ChessBase"]
[PlyCount "63"]
[EventDate "2019.12.30"]
[EventType "swiss"]
[EventCountry "IND"]
[SourceTitle "playchess.com"]
[Source "ChessBase"]
[SourceQuality "1"]
[TimeControl "40/5400+30:1800+30"]

1. e4 {[%emt 0:00:00]} e5 {[%emt 0:00:06]} 2. Nf3 {[%emt 0:00:00]} Nc6 {[%emt 0:00:06]} 3. Bb5 {[%emt 0:00:00]} Nf6 {[%emt 0:00:08]} 4. O-O {[%emt 0:01:17]} Nxe4 {[%emt 0:00:18]} 5. d4 {[%emt 0:04:07]} Nd6 {[%emt 0:00:14]} 6. dxe5 {[%emt 0:00:05]} Nxb5 {[%emt 0:00:15]} 7. a4 {[%emt 0:00:03]} d6 {[%emt 0:05:38]} 8. e6 {[%emt 0:23:14]} fxe6 {[%emt 0:11:21]} 9. axb5 {[%emt 0:00:06]} Ne7 {[%emt 0:02:04]} 10. Ng5 {[%emt 0:10:10]} h6 {[%emt 0:04:41]} 11. Ne4 {[%emt 0:00:54]} d5 {[%emt 0:05:26]} 12. Qh5+ {[%emt 0:00:26]} g6 {[%emt 0:00:07]} 13. Qe5 {[%emt 0:00:04]} Rg8 {[%emt 0:01:41]} 14. Nf6+ {[%emt 0:01:19]} Kf7 {[%emt 0:00:05]} 15. Nxg8 {[%emt 0:00:57]} Kxg8 {[%emt 0:00:06]} 16. Qe2 {[%emt 0:00:00]} Nf5 {[%emt 0:00:30]} 17. Bf4 {[%emt 0:00:00]} Bd7 {[%emt 0:06:35]} 18. c3 {[%emt 0:12:37]} Qe8 {[%emt 0:03:09]} 19. Re1 {[%emt 0:00:49]} Nd6 {[%emt 0:03:32]} 20. Na3 {[%emt 0:00:45]} g5 {[%emt 0:01:15]} 21. Bg3 {[%emt 0:05:05]} Nxb5 {[%emt 0:04:09]} 22. Nxb5 {[%emt 0:01:18]} Bxb5 {[%emt 0:00:04]} 23. Qg4 {[%emt 0:01:04]} Qf7 {[%emt 0:00:12]} 24. h4 {[%emt 0:00:29]} Re8 {[%emt 0:04:09]} 25. hxg5 {[%emt 0:02:58]} a6 {[%emt 0:00:45]} 26. gxh6+ {[%emt 0:07:39]} Kh7 {[%emt 0:00:14]} 27. Re5 {[%emt 0:02:08]} Bxh6 {[%emt 0:02:19]} 28. Rh5 {[%emt 0:00:10]} Rg8 {[%emt 0:02:08]} 29. Rxh6+ {[%emt 0:00:24]} Kxh6 {[%emt 0:00:14]} 30. Bf4+ {[%emt 0:00:03]} Kh7 {[%emt 0:00:21]} 31. Qh4+ {[%emt 0:00:04]} Kg6 {[%emt 0:00:10]} 32. Qg5+ {[%emt 0:00:03]} 1-0

[Event "5th EKA IIFL Investment 2019"]
[Site "Mumbai"]
[Date "2020.01.04"]
[Round "6.28"]
[White "Pandey Srishti"]
[Black "Abdisalimov, Abdimalik"]
[Result "0-1"]
[ECO "E10"]
[WhiteElo "2162"]
[BlackElo "2394"]
[Annotator "ChessBase"]
[PlyCount "102"]
[EventDate "2019.12.30"]
[EventType "swiss"]
[EventCountry "IND"]
[SourceTitle "playchess.com"]
[Source "ChessBase"]
[SourceQuality "1"]
[TimeControl "40/5400+30:1800+30"]

1. d4 {[%emt 0:00:00]} Nf6 {[%emt 0:04:08]} 2. c4 {[%emt 0:00:00]} e6 {[%emt 0:00:05]} 3. Nf3 {[%emt 0:00:00]} c5 {[%emt 0:00:49]} 4. d5 {[%emt 0:00:00]} exd5 {[%emt 0:00:03]} 5. cxd5 {[%emt 0:00:00]} Bd6 {[%emt 0:00:06]} 6. Nc3 {[%emt 0:00:14]} O-O {[%emt 0:00:06]} 7. g3 {[%emt 0:00:02]} Re8 {[%emt 0:00:10]} 8. Bg2 {[%emt 0:00:05]} Bc7 {[%emt 0:01:12]} 9. O-O {[%emt 0:00:06]} d6 {[%emt 0:00:03]} 10. Nd2 {[%emt 0:00:21]} a6 {[%emt 0:00:05]} 11. a4 {[%emt 0:00:07]} Nbd7 {[%emt 0:00:07]} 12. Nc4 {[%emt 0:00:41]} Rb8 {[%emt 0:00:04]} 13. Bf4 Nf8 {[%emt 0:00:05]} 14. a5 {[%emt 0:02:58]} Ng6 {[%emt 0:00:04]} 15. Bd2 {[%emt 0:01:06]} Ng4 {[%emt 0:03:16]} 16. f4 {[%emt 0:04:29]} f5 {[%emt 0:01:08]} 17. Qc2 {[%emt 0:19:32]} Bd7 {[%emt 0:01:19]} 18. e4 {[%emt 0:11:20]} Qf6 {[%emt 0:00:41]} 19. Ne3 {[%emt 0:00:06]} Qd4 {[%emt 0:02:08]} 20. Rfe1 {[%emt 0:00:15]} fxe4 {[%emt 0:03:23]} 21. h3 {[%emt 0:04:58]} Nf6 {[%emt 0:03:38]} 22. Ra3 {[%emt 0:01:01]} c4 {[%emt 0:05:24]} 23. Kh2 {[%emt 0:08:12]} b5 {[%emt 0:01:47]} 24. axb6 {[%emt 0:01:11]} Rxb6 {[%emt 0:00:19]} 25. Bf1 {[%emt 0:05:16]} Rb3 {[%emt 0:06:38]} 26. Rxa6 {[%emt 0:06:45]} Reb8 {[%emt 0:01:58]} 27. Nxc4 {[%emt 0:00:54]} Qf2+ {[%emt 0:07:44]} 28. Bg2 {[%emt 0:01:59]} R8b4 {[%emt 0:05:28]} 29. Re2 {[%emt 0:08:47]} Qd4 {[%emt 0:02:45]} 30. Ra8+ {[%emt 0:00:32]} Bb8 {[%emt 0:02:28]} 31. Nxd6 {[%emt 0:03:23]} Rxb2 {[%emt 0:00:19]} 32. Ncb5 {[%emt 0:03:19]} Rxb5 {[%emt 0:07:41]} 33. Nxb5 {[%emt 0:00:09]} Rxb5 {[%emt 0:00:04]} 34. Qc7 Qb2 {[%emt 0:02:43]} 35. Qc4 {[%emt 0:04:59]} Qb3 {[%emt 0:15:08]} 36. Qxb3 {[%emt 0:00:56]} Rxb3 {[%emt 0:00:01]} 37. Bxe4 {[%emt 0:03:42]} Nxe4 {[%emt 0:03:59]} 38. Rxe4 {[%emt 0:00:02]} Rb2 {[%emt 0:00:20]} 39. Re2 {[%emt 0:01:15]} Kf7 {[%emt 0:00:29]} 40. Rg2 {[%emt 0:00:00]} Ne7 {[%emt 0:00:00]} 41. Ba5 {[%emt 0:12:28]} Rb5 {[%emt 0:03:33]} 42. Rd2 {[%emt 0:00:14]} Nxd5 {[%emt 0:12:52]} 43. Rxb8 {[%emt 0:00:37]} Rxa5 {[%emt 0:02:25]} 44. Rd8 {[%emt 0:00:42]} Bc6 {[%emt 0:02:08]} 45. Rc8 {[%emt 0:03:05]} Be8 {[%emt 0:07:30]} 46. Rb8 {[%emt 0:08:38]} h5 {[%emt 0:00:40]} 47. Rb7+ {[%emt 0:01:49]} Kf8 {[%emt 0:02:14]} 48. Rc2 {[%emt 0:02:46]} Ra8 {[%emt 0:01:54]} 49. f5 {[%emt 0:04:50]} Ne3 {[%emt 0:02:43]} 50. Rf2 {[%emt 0:01:08]} Bc6 {[%emt 0:02:06]} 51. Rb3 {[%emt 0:01:25]} Ra1 {[%emt 0:00:17]} 0-1

[Event "5th EKA IIFL Investment 2019"]
[Site "Mumbai"]
[Date "2020.01.04"]
[Round "6.31"]
[White "Barath Kalyan M"]
[Black "Manik, Mikulas"]
[Result "0-1"]
[ECO "A10"]
[WhiteElo "2091"]
[BlackElo "2379"]
[Annotator "ChessBase"]
[PlyCount "79"]
[EventDate "2019.12.30"]
[EventType "swiss"]
[EventCountry "IND"]
[SourceTitle "playchess.com"]
[Source "ChessBase"]
[SourceQuality "1"]
[TimeControl "40/5400+30:1800+30"]

1. c4 {[%emt 0:00:04]} g6 {[%emt 0:00:00]} 2. Nc3 {[%emt 0:00:23]} Bg7 {[%emt 0:00:00]} 3. g3 {[%emt 0:00:29]} Nf6 {[%emt 0:00:00]} 4. Bg2 {[%emt 0:00:07]} O-O {[%emt 0:00:06]} 5. e4 {[%emt 0:00:11]} c5 {[%emt 0:00:21]} 6. Nge2 {[%emt 0:00:14]} Nc6 {[%emt 0:00:09]} 7. O-O {[%emt 0:00:12]} d6 {[%emt 0:00:14]} 8. d3 {[%emt 0:00:07]} e5 {[%emt 0:06:13]} 9. h3 {[%emt 0:00:40]} Nd4 {[%emt 0:01:27]} 10. Be3 {[%emt 0:03:41]} Nh5 {[%emt 0:03:36]} 11. g4 {[%emt 0:04:44]} Nxe2+ {[%emt 0:01:46]} 12. Nxe2 {[%emt 0:00:52]} Nf4 {[%emt 0:01:18]} 13. Nxf4 {[%emt 0:00:36]} exf4 {[%emt 0:00:02]} 14. Bxf4 {[%emt 0:00:09]} Bxb2 {[%emt 0:00:04]} 15. Rb1 {[%emt 0:00:12]} Bg7 {[%emt 0:02:42]} 16. Qd2 {[%emt 0:03:39]} Rb8 {[%emt 0:01:20]} 17. Bh6 {[%emt 0:01:54]} f5 {[%emt 0:02:54]} 18. exf5 {[%emt 0:04:24]} gxf5 {[%emt 0:00:06]} 19. Bd5+ {[%emt 0:00:48]} Kh8 {[%emt 0:00:03]} 20. Bxg7+ {[%emt 0:27:50]} Kxg7 {[%emt 0:00:19]} 21. g5 {[%emt 0:15:22]} f4 {[%emt 0:02:51]} 22. Qc3+ {[%emt 0:03:03]} Kg6 {[%emt 0:00:17]} 23. Kh2 {[%emt 0:01:27]} Qd7 {[%emt 0:05:12]} 24. d4 {[%emt 0:05:51]} Qg7 {[%emt 0:02:24]} 25. Rbd1 {[%emt 0:05:32]} Bf5 {[%emt 0:04:45]} 26. Qf3 {[%emt 0:02:19]} cxd4 {[%emt 0:01:01]} 27. Rde1 {[%emt 0:05:31]} Rbe8 {[%emt 0:03:57]} 28. Qxf4 {[%emt 0:00:34]} Re5 {[%emt 0:00:21]} 29. Qxd4 {[%emt 0:05:02]} b6 {[%emt 0:03:21]} 30. Rxe5 {[%emt 0:02:24]} Qxe5+ {[%emt 0:00:23]} 31. Qxe5 {[%emt 0:00:11]} dxe5 {[%emt 0:00:05]} 32. Re1 {[%emt 0:00:35]} Kxg5 {[%emt 0:00:19]} 33. Rxe5 {[%emt 0:00:11]} Kf6 {[%emt 0:00:21]} 34. Re3 {[%emt 0:00:12]} Rc8 {[%emt 0:00:34]} 35. Kg3 {[%emt 0:00:09]} Rc5 {[%emt 0:00:09]} 36. Kf4 {[%emt 0:00:50]} b5 {[%emt 0:00:08]} 37. Re8 {[%emt 0:01:25]} Bg6 {[%emt 0:02:40]} 38. Re6+ {[%emt 0:03:07]} Kg7 {[%emt 0:00:12]} 39. Ke5 {[%emt 0:00:21]} bxc4 {[%emt 0:00:06]} 40. Kd4 0-1

[Event "5th EKA IIFL Investment 2019"]
[Site "Mumbai"]
[Date "2020.01.04"]
[Round "6.32"]
[White "Zysk, Robert"]
[Black "Sri Sai Baswanth P"]
[Result "1-0"]
[ECO "B06"]
[WhiteElo "2403"]
[BlackElo "2027"]
[Annotator "ChessBase"]
[PlyCount "53"]
[EventDate "2019.12.30"]
[EventType "swiss"]
[EventCountry "IND"]
[SourceTitle "playchess.com"]
[Source "ChessBase"]
[SourceQuality "1"]
[TimeControl "40/5400+30:1800+30"]

1. Nf3 {[%emt 0:00:00]} g6 {[%emt 0:00:04]} 2. e4 {[%emt 0:00:01]} Bg7 {[%emt 0:00:06]} 3. d4 {[%emt 0:00:10]} d6 {[%emt 0:00:05]} 4. Nc3 {[%emt 0:01:45]} c6 {[%emt 0:00:05]} 5. a4 {[%emt 0:01:39]} Nf6 {[%emt 0:00:06]} 6. Be2 {[%emt 0:00:45]} O-O {[%emt 0:00:07]} 7. O-O {[%emt 0:00:32]} Nbd7 {[%emt 0:00:14]} 8. Bf4 {[%emt 0:07:02]} Qc7 {[%emt 0:02:43]} 9. Nd2 {[%emt 0:04:48]} e5 {[%emt 0:04:11]} 10. dxe5 {[%emt 0:01:25]} Nxe5 {[%emt 0:00:20]} 11. Nc4 {[%emt 0:12:49]} Ne8 {[%emt 0:02:28]} 12. Nxe5 {[%emt 0:10:56]} dxe5 {[%emt 0:00:08]} 13. Be3 {[%emt 0:00:14]} Be6 {[%emt 0:00:15]} 14. a5 {[%emt 0:00:32]} Nd6 {[%emt 0:01:31]} 15. b3 {[%emt 0:03:24]} Rfd8 {[%emt 0:02:25]} 16. Qc1 {[%emt 0:01:15]} c5 {[%emt 0:03:42]} 17. Rd1 {[%emt 0:03:34]} Qc6 {[%emt 0:00:58]} 18. f3 {[%emt 0:01:11]} Rac8 {[%emt 0:06:48]} 19. Nd5 {[%emt 0:01:56]} Bxd5 {[%emt 0:01:05]} 20. Rxd5 {[%emt 0:00:18]} b6 {[%emt 0:09:41]} 21. Qd2 {[%emt 0:04:37]} f6 {[%emt 0:01:11]} 22. Bc4 {[%emt 0:10:48]} Kf8 {[%emt 0:00:20]} 23. Rd1 {[%emt 0:03:32]} Nf7 {[%emt 0:00:25]} 24. Rd7 {[%emt 0:01:25]} Rxd7 {[%emt 0:02:05]} 25. Qxd7 {[%emt 0:00:15]} Rc7 {[%emt 0:01:13]} 26. Qxc6 {[%emt 0:00:57]} Rxc6 {[%emt 0:00:05]} 27. Rd7 {[%emt 0:00:47]} 1-0

[Event "5th EKA IIFL Investment 2019"]
[Site "Mumbai"]
[Date "2020.01.04"]
[Round "6.34"]
[White "Navalgund, Niranjan"]
[Black "Konguvel, Ponnuswamy"]
[Result "0-1"]
[ECO "D86"]
[WhiteElo "2231"]
[BlackElo "2367"]
[Annotator "RC"]
[PlyCount "146"]
[EventDate "2019.12.30"]
[EventType "swiss"]
[EventCountry "IND"]
[SourceTitle "playchess.com"]
[Source "ChessBase"]
[SourceQuality "1"]
[TimeControl "40/5400+30:1800+30"]

1. d4 {[%emt 0:00:00]} Nf6 {[%emt 0:00:00]} 2. c4 {[%emt 0:00:00]} g6 {[%emt 0:00:08]} 3. Nc3 {[%emt 0:00:00]} d5 {[%emt 0:00:10]} 4. cxd5 {[%emt 0:00:00]} Nxd5 {[%emt 0:00:06]} 5. e4 {[%emt 0:00:00]} Nxc3 {[%emt 0:00:07]} 6. bxc3 {[%emt 0:00:00]} Bg7 {[%emt 0:00:12]} 7. Bc4 {[%emt 0:00:00]} c5 {[%emt 0:00:53]} 8. Ne2 {[%emt 0:00:00]} Nc6 {[%emt 0:00:45]} 9. Be3 {[%emt 0:00:00]} O-O {[%emt 0:00:26]} 10. O-O {[%emt 0:00:01]} Bg4 {[%emt 0:10:23]} 11. f3 {[%emt 0:00:13]} Bd7 {[%emt 0:00:22]} 12. Rb1 {[%emt 0:00:11]} Qc7 {[%emt 0:00:27]} 13. Qd2 {[%emt 0:00:28]} Rad8 {[%emt 0:10:03]} 14. Rfc1 {[%emt 0:03:09]} Bc8 {[%emt 0:06:52]} 15. Qe1 {[%emt 0:01:56]} Na5 {[%emt 0:11:57]} 16. Bd3 {[%emt 0:04:50]} e5 {[%emt 0:01:25]} 17. Rd1 {[%emt 0:05:13]} Be6 {[%emt 0:00:00]} 18. Rdc1 {[%emt 0:00:00]} Bc8 {[%emt 0:01:00]} 19. Rd1 {[%emt 0:01:00]} Be6 {[%emt 0:18:53]} 20. d5 {[%emt 0:01:09]} Bd7 {[%emt 0:01:05]} 21. c4 {[%emt 0:00:27]} b6 {[%emt 0:00:25]} 22. Nc3 {[%emt 0:05:02]} Nb7 {[%emt 0:00:24]} 23. Ne2 {[%emt 0:00:00]} Na5 {[%emt 0:00:36]} 24. Nc3 {[%emt 0:01:00]} Nb7 {[%emt 0:00:24]} 25. Nb5 {[%emt 0:07:21]} Qb8 {[%emt 0:00:23]} 26. a4 {[%emt 0:04:05]} a6 {[%emt 0:06:03]} 27. Nc3 {[%emt 0:00:41]} Qd6 {[%emt 0:02:10]} 28. Rd2 {[%emt 0:05:28]} Rb8 {[%emt 0:00:13]} 29. Rdb2 {[%emt 0:00:12]} Na5 {[%emt 0:00:08]} 30. Bd2 {[%emt 0:07:39]} Bf6 {[%emt 0:03:30]} 31. Ne2 {[%emt 0:06:42]} Bxa4 {[%emt 0:00:40]} 32. Bxa5 {[%emt 0:00:11]} bxa5 {[%emt 0:00:04]} 33. Qxa5 {[%emt 0:00:11]} Rxb2 {[%emt 0:11:56]} 34. Rxb2 {[%emt 0:00:02]} Bd7 {[%emt 0:00:46]} 35. Rb6 {[%emt 0:00:30]} Qe7 {[%emt 0:00:39]} 36. d6 {[%emt 0:03:50]} Qe6 {[%emt 0:03:09]} 37. Qxc5 {[%emt 0:01:24]} a5 {[%emt 0:00:46]} 38. Ra6 {[%emt 0:04:05]} Rb8 {[%emt 0:02:53]} 39. Qxa5 {[%emt 0:02:01]} Bd8 {[%emt 0:00:41]} 40. Qd5 {[%emt 0:06:02]} Bc8 {[%emt 0:03:35]} 41. Qxe6 {[%emt 0:36:03]} fxe6 {[%emt 0:30:06]} 42. c5 {[%emt 0:01:35]} Bxa6 {[%emt 0:00:05]} 43. Bxa6 {[%emt 0:00:01]} Ra8 {[%emt 0:00:43]} 44. Bb5 {[%emt 0:00:00]} Ba5 {[%emt 0:00:00]} 45. Nc1 {[%emt 0:00:00]} Rb8 {[%emt 0:00:00]} 46. Bd3 {[%emt 0:00:00]} Rb2 {[%emt 0:00:00]} 47. Kf1 {[%emt 0:01:18]} Bb4 {[%emt 0:00:00]} 48. d7 {[%emt 0:01:12]} Ba5 {[%emt 0:00:00]} 49. Ne2 {[%emt 0:07:56]} Kf7 {[%emt 0:00:00]} 50. c6 {[%emt 0:02:36]} Ke7 {[%emt 0:00:00]} 51. Ba6 {[%emt 0:01:03]} Rb6 {[%emt 0:02:22]} 52. Bd3 {[%emt 0:10:06]} Rxc6 {[%emt 0:00:04]} 53. Kf2 {[%emt 0:02:28]} Rc5 {[%emt 0:01:33]} 54. g3 {[%emt 0:01:48]} Kxd7 {[%emt 0:00:24]} 55. f4 {[%emt 0:01:17]} Bb6 {[%emt 0:01:41]} 56. Kg2 {[%emt 0:00:02]} Ke7 {[%emt 0:00:32]} 57. fxe5 {[%emt 0:00:53]} Rxe5 {[%emt 0:01:12]} 58. h4 {[%emt 0:00:26]} Ra5 {[%emt 0:00:23]} 59. g4 {[%emt 0:04:13]} Ra3 {[%emt 0:00:40]} 60. Bb1 {[%emt 0:00:17]} Re3 {[%emt 0:00:50]} 61. Kf1 {[%emt 0:01:13]} Rf3+ {[%emt 0:01:40]} 62. Ke1 {[%emt 0:00:04]} Bf2+ {[%emt 0:00:21]} 63. Kd2 {[%emt 0:00:03]} Bxh4 {[%emt 0:00:07]} 64. Bd3 {[%emt 0:00:09]} Bg5+ {[%emt 0:00:38]} 65. Kc2 {[%emt 0:00:29]} h5 {[%emt 0:00:17]} 66. gxh5 {[%emt 0:01:05]} gxh5 {[%emt 0:00:02]} 67. Bc4 {[%emt 0:00:13]} e5 {[%emt 0:02:10]} 68. Ng1 {[%emt 0:00:59]} Rg3 {[%emt 0:01:01]} 69. Ne2 {[%emt 0:00:14]} Rg2 {[%emt 0:00:04]} 70. Kd1 {[%emt 0:00:19]} h4 {[%emt 0:00:17]} 71. Ke1 {[%emt 0:00:05]} h3 {[%emt 0:00:17]} 72. Kf1 {[%emt 0:00:01]} Be3 {[%emt 0:00:06]} 73. Bd3 {[%emt 0:00:55]} Rg5 {[%emt 0:00:28]} 0-1

[Event "5th EKA IIFL Investment 2019"]
[Site "Mumbai"]
[Date "2020.01.04"]
[Round "6.35"]
[White "Jubin Jimmy"]
[Black "Audi Ameya"]
[Result "0-1"]
[ECO "A64"]
[WhiteElo "2193"]
[BlackElo "2360"]
[Annotator "ChessBase"]
[PlyCount "86"]
[EventDate "2019.12.30"]
[EventType "swiss"]
[EventCountry "IND"]
[SourceTitle "playchess.com"]
[Source "ChessBase"]
[SourceQuality "1"]
[TimeControl "40/5400+30:1800+30"]

1. d4 {[%emt 0:00:00]} Nf6 {[%emt 0:00:00]} 2. c4 {[%emt 0:00:00]} g6 {[%emt 0:00:00]} 3. g3 {[%emt 0:00:01]} Bg7 {[%emt 0:00:00]} 4. Bg2 {[%emt 0:00:02]} O-O {[%emt 0:00:00]} 5. Nc3 {[%emt 0:00:03]} c5 {[%emt 0:02:00]} 6. d5 {[%emt 0:00:07]} d6 {[%emt 0:00:28]} 7. Nf3 {[%emt 0:00:29]} e6 {[%emt 0:00:06]} 8. O-O {[%emt 0:02:14]} exd5 {[%emt 0:00:04]} 9. cxd5 {[%emt 0:00:06]} Re8 {[%emt 0:00:07]} 10. Nd2 {[%emt 0:01:28]} a6 {[%emt 0:02:11]} 11. a4 {[%emt 0:00:18]} Nbd7 {[%emt 0:00:04]} 12. Nc4 {[%emt 0:01:10]} Ne5 {[%emt 0:00:08]} 13. Nxe5 {[%emt 0:00:24]} Rxe5 {[%emt 0:00:35]} 14. e4 {[%emt 0:02:34]} Re8 {[%emt 0:04:51]} 15. h3 {[%emt 0:09:21]} Rb8 {[%emt 0:02:31]} 16. a5 {[%emt 0:04:22]} Nd7 {[%emt 0:00:43]} 17. f4 {[%emt 0:06:16]} b5 {[%emt 0:02:55]} 18. axb6 {[%emt 0:01:19]} Nxb6 {[%emt 0:00:09]} 19. Kh2 {[%emt 0:01:37]} Nc4 {[%emt 0:09:12]} 20. Qc2 {[%emt 0:11:24]} f5 {[%emt 0:08:23]} 21. Ra2 {[%emt 0:05:43]} Rb4 {[%emt 0:00:00]} 22. Ra1 {[%emt 0:00:00]} Rb8 {[%emt 0:01:00]} 23. Ra2 {[%emt 0:01:00]} Rb4 {[%emt 0:04:08]} 24. Re1 {[%emt 0:08:35]} Bd4 {[%emt 0:24:11]} 25. Ra4 {[%emt 0:06:34]} Nb6 {[%emt 0:10:56]} 26. Ra2 {[%emt 0:09:43]} Qf6 {[%emt 0:03:05]} 27. Re2 {[%emt 0:05:23]} Kg7 {[%emt 0:00:43]} 28. Bd2 {[%emt 0:02:06]} Nc4 {[%emt 0:00:27]} 29. Bc1 {[%emt 0:00:19]} a5 {[%emt 0:03:16]} 30. b3 {[%emt 0:03:24]} Bxc3 {[%emt 0:07:44]} 31. e5 {[%emt 0:00:34]} Nxe5 {[%emt 0:01:14]} 32. Qxc3 {[%emt 0:00:44]} Ng4+ {[%emt 0:00:04]} 33. hxg4 {[%emt 0:00:36]} Qxc3 {[%emt 0:00:04]} 34. Bb2 {[%emt 0:00:20]} Qxb2 {[%emt 0:00:05]} 35. Rexb2 {[%emt 0:00:18]} fxg4 {[%emt 0:02:20]} 36. Rxa5 {[%emt 0:01:05]} c4 {[%emt 0:00:05]} 37. Ra4 {[%emt 0:02:17]} c3 {[%emt 0:03:04]} 38. Ra7+ {[%emt 0:01:48]} Bb7 {[%emt 0:01:32]} 39. Rb1 {[%emt 0:04:25]} Re2 {[%emt 0:00:46]} 40. Kg1 {[%emt 0:01:29]} c2 {[%emt 0:01:11]} 41. Rc1 {[%emt 0:31:11]} Rxb3 {[%emt 0:31:00]} 42. Kf1 {[%emt 0:00:00]} Rd2 {[%emt 0:00:00]} 43. Be4 {[%emt 0:00:00]} Rd1+ {[%emt 0:00:00]} 0-1

[Event "5th EKA IIFL Investment 2019"]
[Site "Mumbai"]
[Date "2020.01.04"]
[Round "6.37"]
[White "Anuj Shrivatri"]
[Black "Varun, V."]
[Result "1-0"]
[ECO "A49"]
[WhiteElo "2348"]
[BlackElo "2256"]
[Annotator "RC"]
[PlyCount "65"]
[EventDate "2019.12.30"]
[EventType "swiss"]
[EventCountry "IND"]
[SourceTitle "playchess.com"]
[Source "ChessBase"]
[SourceQuality "1"]
[TimeControl "40/5400+30:1800+30"]

1. d4 {[%emt 0:00:00]} Nf6 {[%emt 0:00:00]} 2. Nf3 {[%emt 0:00:00]} g6 {[%emt 0:00:43]} 3. g3 {[%emt 0:00:00]} Bg7 {[%emt 0:00:08]} 4. Bg2 {[%emt 0:00:00]} O-O {[%emt 0:00:06]} 5. O-O {[%emt 0:00:02]} d6 {[%emt 0:00:36]} 6. b3 {[%emt 0:00:05]} c6 {[%emt 0:10:32]} 7. Bb2 {[%emt 0:00:23]} Qa5 {[%emt 0:00:01]} 8. Nbd2 {[%emt 0:00:52]} Qh5 {[%emt 0:01:27]} 9. e4 {[%emt 0:00:49]} Bh3 {[%emt 0:00:47]} 10. Re1 {[%emt 0:03:04]} Nbd7 {[%emt 0:03:04]} 11. Bxh3 {[%emt 0:00:49]} Qxh3 {[%emt 0:00:08]} 12. Ng5 {[%emt 0:00:04]} Qh5 {[%emt 0:03:21]} 13. Qxh5 {[%emt 0:00:14]} Nxh5 {[%emt 0:00:06]} 14. e5 {[%emt 0:00:07]} h6 {[%emt 0:16:19]} 15. Nh3 {[%emt 0:09:48]} f5 {[%emt 0:00:05]} 16. f4 {[%emt 0:16:55]} d5 {[%emt 0:00:53]} 17. Ba3 {[%emt 0:05:20]} Rfe8 {[%emt 0:01:18]} 18. c4 {[%emt 0:03:21]} e6 {[%emt 0:00:06]} 19. Bd6 {[%emt 0:03:01]} b5 {[%emt 0:02:01]} 20. cxb5 {[%emt 0:08:52]} cxb5 {[%emt 0:00:07]} 21. a4 {[%emt 0:00:02]} Bf8 {[%emt 0:01:19]} 22. Bxf8 {[%emt 0:00:57]} Kxf8 {[%emt 0:00:56]} 23. axb5 {[%emt 0:00:04]} Reb8 {[%emt 0:01:51]} 24. Ra5 {[%emt 0:03:11]} Ke7 {[%emt 0:01:35]} 25. Rea1 {[%emt 0:00:37]} Rb7 {[%emt 0:00:31]} 26. Nf2 {[%emt 0:01:09]} g5 {[%emt 0:06:13]} 27. fxg5 {[%emt 0:01:26]} hxg5 {[%emt 0:00:07]} 28. Nd3 {[%emt 0:00:33]} Nb6 {[%emt 0:00:32]} 29. Nc5 {[%emt 0:00:12]} Rc7 {[%emt 0:01:55]} 30. Ra6 {[%emt 0:00:12]} Nc8 {[%emt 0:03:08]} 31. Rxe6+ {[%emt 0:00:39]} Kf7 {[%emt 0:00:02]} 32. Nf3 {[%emt 0:01:53]} g4 {[%emt 0:01:10]} 33. Ng5+ {[%emt 0:00:11]} 1-0